Workbook

Sheet 환불기준(겨울학기)
A1: 구분 | E1: 청연 계절(3인실) 24박 | F1: 청연 계절(1인실) 24박 | G1: 청연 계절(장애인실) 24박 | H1: 청연 장기A(3인실) 57박 | I1: 청연 장기B(3인실) 64박 | J1: 매지 장기C(3인실) 57박 | K1: 매지 장기D(3인실) 64박 | N1: 계절입사 | O1: 장기입사A | P1: 장기입사B | Q1: 장기입사C | R1: 장기입사D
A2: 23-겨울학기 | D2: 1박 단가 | E2: 9890 | F2: =E2*3 -> 29670 | G2: 12060 | H2: 9890 | I2: 9890 | J2: 5190 | K2: 5190 | M2: 입사일 | N2: 2023-12-25 | O2: 2023-12-22 | P2: 2023-12-22 | Q2: 2023-12-22 | R2: 2023-12-22
D3: 입사비 | E3: =E2*N4 -> 237360 | F3: =F2*N4 -> 712080 | G3: =G2*N4 -> 289440 | H3: =H2*O4 -> 563730 | I3: =I2*P4 -> 632960 | J3: =J2*Q4 -> 295830 | K3: =K2*R4 -> 332160 | M3: 퇴사일 | N3: 2024-01-18 | O3: 2024-02-17 | P3: 2024-02-24 | Q3: 2024-02-17 | R3: 2024-02-24
D4: 위약금 | E4: =E3*0.2 -> 47472 | F4: 142416 | G4: 57888 | H4: 112746 | I4: =I3*0.2 -> 126592 | J4: 59166 | K4: 66432 | M4: 사용일(박) | N4: =N3-N2 -> 24 | O4: =O3-O2 -> 57 | P4: =P3-P2 -> 64 | Q4: =Q3-Q2 -> 57 | R4: =R3-R2 -> 64
B5: 계절 | C5: 장기 | D5: 위약금 (절상) | E5: =ROUNDDOWN(E4,-1) -> 47470 | F5: 142410 | G5: 57880 | H5: 112740 | I5: 126590 | J5: 59160 | K5: 66430
A6: 장기A/B/C/D입사일 | C6: 1 | D6: 2023-12-22 | H6: =H3-H5 -> 450990 | I6: =I3-I5 -> 506370 | J6: =J3-J5 -> 236670 | K6: =K3-K5 -> 265730
C7: 2 | D7: 2023-12-23 | H7: =H6-$H$2 -> 441100 | I7: =I6-$I$2 -> 496480 | J7: =J6-$J$2 -> 231480 | K7: =K6-$K$2 -> 260540
C8: 3 | D8: 2023-12-24 | H8: =H7-$H$2 -> 431210 | I8: =I7-$I$2 -> 486590 | J8: =J7-$J$2 -> 226290 | K8: =K7-$K$2 -> 255350
A9: 계절입사일 | C9: 4 | D9: 2023-12-25 | E9: =E3-E5 -> 189890 | F9: =F3-F5 -> 569670 | G9: =G3-G5 -> 231560 | H9: 421320 | I9: 476700 | J9: 221100 | K9: 250160
B10: 1 | C10: 5 | D10: 2023-12-26 | E10: =E9-$E$2 -> 180000 | F10: =F9-$F$2 -> 540000 | G10: =G9-$G$2 -> 219500 | H10: 411430 | I10: 466810 | J10: 215910 | K10: 244970
B11: 2 | C11: 6 | D11: 2023-12-27 | E11: =E10-$E$2 -> 170110 | F11: =F10-$F$2 -> 510330 | G11: =G10-$G$2 -> 207440 | H11: 401540 | I11: 456920 | J11: 210720 | K11: 239780
B12: 3 | C12: 7 | D12: 2023-12-28 | E12: =E11-$E$2 -> 160220 | F12: 480660 | G12: 195380 | H12: 391650 | I12: 447030 | J12: 205530 | K12: 234590
B13: 4 | C13: 8 | D13: 2023-12-29 | E13: 150330 | F13: 450990 | G13: 183320 | H13: 381760 | I13: 437140 | J13: 200340 | K13: 229400
B14: 5 | C14: 9 | D14: 2023-12-30 | E14: 140440 | F14: 421320 | G14: 171260 | H14: 371870 | I14: 427250 | J14: 195150 | K14: 224210
B15: 6 | C15: 10 | D15: 2023-12-31 | E15: 130550 | F15: 391650 | G15: 159200 | H15: 361980 | I15: 417360 | J15: 189960 | K15: 219020
B16: 7 | C16: 11 | D16: 2024-01-01 | E16: 120660 | F16: 361980 | G16: 147140 | H16: 352090 | I16: 407470 | J16: 184770 | K16: 213830
B17: 8 | C17: 12 | D17: 2024-01-02 | E17: 110770 | F17: 332310 | G17: 135080 | H17: 342200 | I17: 397580 | J17: 179580 | K17: 208640
B18: 9 | C18: 13 | D18: 2024-01-03 | E18: 100880 | F18: 302640 | G18: 123020 | H18: 332310 | I18: 387690 | J18: 174390 | K18: 203450
B19: 10 | C19: 14 | D19: 2024-01-04 | E19: 90990 | F19: 272970 | G19: 110960 | H19: 322420 | I19: 377800 | J19: 169200 | K19: 198260
B20: 11 | C20: 15 | D20: 2024-01-05 | E20: 81100 | F20: 243300 | G20: 98900 | H20: 312530 | I20: 367910 | J20: 164010 | K20: 193070
B21: 12 | C21: 16 | D21: 2024-01-06 | E21: 71210 | F21: 213630 | G21: 86840 | H21: 302640 | I21: 358020 | J21: 158820 | K21: 187880
B22: 13 | C22: 17 | D22: 2024-01-07 | E22: 61320 | F22: 183960 | G22: 74780 | H22: 292750 | I22: 348130 | J22: 153630 | K22: 182690
B23: 14 | C23: 18 | D23: 2024-01-08 | E23: 51430 | F23: 154290 | G23: 62720 | H23: 282860 | I23: 338240 | J23: 148440 | K23: 177500
B24: 15 | C24: 19 | D24: 2024-01-09 | E24: 41540 | F24: 124620 | G24: 50660 | H24: 272970 | I24: 328350 | J24: 143250 | K24: 172310
B25: 16 | C25: 20 | D25: 2024-01-10 | E25: 31650 | F25: 94950 | G25: 38600 | H25: 263080 | I25: 318460 | J25: 138060 | K25: 167120
B26: 17 | C26: 21 | D26: 2024-01-11 | E26: 21760 | F26: 65280 | G26: 26540 | H26: 253190 | I26: 308570 | J26: 132870 | K26: 161930
B27: 18 | C27: 22 | D27: 2024-01-12 | E27: =E26-$E$2 -> 11870 | F27: =F26-$F$2 -> 35610 | G27: 14480 | H27: 243300 | I27: 298680 | J27: 127680 | K27: 156740
A28: 계절 입사비 환불기한(24박*80%) | B28: 19 | C28: 23 | D28: 2024-01-13 | E28: 1980 | F28: =F27-$F$2 -> 5940 | G28: =G27-$G$2 -> 2420 | H28: 233410 | I28: 288790 | J28: 122490 | K28: 151550
B29: 20 | C29: 24 | D29: 2024-01-14 | E29: -7910 | F29: -23730 | G29: -9640 | H29: 223520 | I29: 278900 | J29: 117300 | K29: 146360
B30: 21 | C30: 25 | D30: 2024-01-15 | E30: -17800 | F30: -53400 | G30: -21700 | H30: 213630 | I30: 269010 | J30: 112110 | K30: 141170
B31: 22 | C31: 26 | D31: 2024-01-16 | E31: -27690 | F31: -83070 | G31: -33760 | H31: 203740 | I31: 259120 | J31: 106920 | K31: 135980
B32: 23 | C32: 27 | D32: 2024-01-17 | E32: -37580 | F32: -112740 | G32: -45820 | H32: 193850 | I32: 249230 | J32: 101730 | K32: 130790
A33: 계절퇴사일 | C33: 28 | D33: 2024-01-18 | E33: -47470 | F33: -142410 | G33: -57880 | H33: 183960 | I33: 239340 | J33: 96540 | K33: 125600
C34: 29 | D34: 2024-01-19 | E34: -57360 | F34: -172080 | G34: -69940 | H34: 174070 | I34: 229450 | J34: 91350 | K34: 120410
C35: 30 | D35: 2024-01-20 | E35: -67250 | F35: -201750 | G35: -82000 | H35: 164180 | I35: 219560 | J35: 86160 | K35: 115220
C36: 31 | D36: 2024-01-21 | E36: -77140 | F36: -231420 | G36: -94060 | H36: 154290 | I36: 209670 | J36: 80970 | K36: 110030
C37: 32 | D37: 2024-01-22 | E37: -87030 | F37: -261090 | G37: -106120 | H37: 144400 | I37: 199780 | J37: 75780 | K37: 104840
C38: 33 | D38: 2024-01-23 | E38: -96920 | F38: -290760 | G38: -118180 | H38: 134510 | I38: 189890 | J38: 70590 | K38: 99650
C39: 34 | D39: 2024-01-24 | E39: -106810 | F39: -320430 | G39: -130240 | H39: 124620 | I39: 180000 | J39: 65400 | K39: 94460
C40: 35 | D40: 2024-01-25 | E40: -116700 | F40: -350100 | G40: -142300 | H40: 114730 | I40: 170110 | J40: 60210 | K40: 89270
C41: 36 | D41: 2024-01-26 | E41: -126590 | F41: -379770 | G41: -154360 | H41: 104840 | I41: 160220 | J41: 55020 | K41: 84080
C42: 37 | D42: 2024-01-27 | E42: -136480 | F42: -409440 | G42: -166420 | H42: 94950 | I42: 150330 | J42: 49830 | K42: 78890
C43: 38 | D43: 2024-01-28 | E43: -146370 | F43: -439110 | G43: -178480 | H43: 85060 | I43: 140440 | J43: 44640 | K43: 73700
C44: 39 | D44: 2024-01-29 | E44: -156260 | F44: -468780 | G44: -190540 | H44: 75170 | I44: 130550 | J44: 39450 | K44: 68510
C45: 40 | D45: 2024-01-30 | E45: -166150 | F45: -498450 | G45: -202600 | H45: 65280 | I45: 120660 | J45: 34260 | K45: 63320
C46: 41 | D46: 2024-01-31 | E46: -176040 | F46: -528120 | G46: -214660 | H46: 55390 | I46: 110770 | J46: 29070 | K46: 58130
C47: 42 | D47: 2024-02-01 | E47: -185930 | F47: -557790 | G47: -226720 | H47: 45500 | I47: 100880 | J47: 23880 | K47: 52940
C48: 43 | D48: 2024-02-02 | E48: -195820 | F48: -587460 | G48: -238780 | H48: 35610 | I48: 90990 | J48: 18690 | K48: 47750
C49: 44 | D49: 2024-02-03 | E49: -205710 | F49: -617130 | G49: -250840 | H49: 25720 | I49: 81100 | J49: 13500 | K49: 42560
C50: 45 | D50: 2024-02-04 | E50: -215600 | F50: -646800 | G50: -262900 | H50: 15830 | I50: 71210 | J50: 8310 | K50: 37370
A51: 장기A/C 입사비 환불기한(57박*80%) | C51: 46 | D51: 2024-02-05 | E51: -225490 | F51: -676470 | G51: -274960 | H51: 5940 | I51: 61320 | J51: 3120 | K51: 32180
C52: 47 | D52: 2024-02-06 | E52: -235380 | F52: -706140 | G52: -287020 | H52: -3950 | I52: 51430 | J52: -2070 | K52: 26990
C53: 48 | D53: 2024-02-07 | E53: -245270 | F53: -735810 | G53: -299080 | H53: -13840 | I53: 41540 | J53: -7260 | K53: 21800
C54: 49 | D54: 2024-02-08 | E54: -255160 | F54: -765480 | G54: -311140 | H54: -23730 | I54: 31650 | J54: -12450 | K54: 16610
C55: 50 | D55: 2024-02-09 | E55: -265050 | F55: -795150 | G55: -323200 | H55: -33620 | I55: 21760 | J55: -17640 | K55: 11420
C56: 51 | D56: 2024-02-10 | E56: -274940 | F56: -824820 | G56: -335260 | H56: -43510 | I56: 11870 | J56: -22830 | K56: 6230
A57: 장기B/D 입사비 환불기한(64박*80%) | C57: 52 | D57: 2024-02-11 | E57: -284830 | F57: -854490 | G57: -347320 | H57: -53400 | I57: 1980 | J57: -28020 | K57: 1040
C58: 53 | D58: 2024-02-12 | E58: -294720 | F58: -884160 | G58: -359380 | H58: -63290 | I58: -7910 | J58: -33210 | K58: -4150
C59: 54 | D59: 2024-02-13 | E59: -304610 | F59: -913830 | G59: -371440 | H59: -73180 | I59: -17800 | J59: -38400 | K59: -9340
C60: 55 | D60: 2024-02-14 | E60: -314500 | F60: -943500 | G60: -383500 | H60: -83070 | I60: -27690 | J60: -43590 | K60: -14530
C61: 56 | D61: 2024-02-15 | E61: -324390 | F61: -973170 | G61: -395560 | H61: -92960 | I61: -37580 | J61: -48780 | K61: -19720
C62: 57 | D62: 2024-02-16 | E62: -334280 | F62: -1002840 | G62: -407620 | H62: -102850 | I62: -47470 | J62: -53970 | K62: -24910
A63: 장기 A/C 퇴사일 | C63: 58 | D63: 2024-02-17 | E63: -344170 | F63: -1032510 | G63: -419680 | H63: -112740 | I63: -57360 | J63: -59160 | K63: -30100
C64: 59 | D64: 2024-02-18 | E64: -354060 | F64: -1062180 | G64: -431740 | H64: -122630 | I64: -67250 | J64: -64350 | K64: -35290
A65: 장기 B/D 이동일 | D65: 2024-02-19 | E65: -363950 | F65: -1091850 | G65: -443800 | H65: -132520 | I65: -77140 | J65: -69540 | K65: -40480
D66: 2024-02-20 | E66: -373840 | F66: -1121520 | G66: -455860 | H66: -142410 | I66: -87030 | J66: -74730 | K66: -45670
D67: 2024-02-21 | E67: -383730 | F67: -1151190 | G67: -467920 | H67: -152300 | I67: -96920 | J67: -79920 | K67: -50860
D68: 2024-02-22 | E68: -393620 | F68: -1180860 | G68: -479980 | H68: -162190 | I68: -106810 | J68: -85110 | K68: -56050
D69: 2024-02-23 | E69: -403510 | F69: -1210530 | G69: -492040 | H69: -172080 | I69: -116700 | J69: -90300 | K69: -61240
D70: 2024-02-24 | E70: -413400 | F70: -1240200 | G70: -504100 | H70: -181970 | I70: -126590 | J70: -95490 | K70: -66430
A71: 24-1학기 입사일 | D71: 2024-02-25 | E71: -423290 | F71: -1269870 | G71: -516160 | H71: -191860 | I71: -136480 | J71: -100680 | K71: -71620
